Cogmind - Beta 17.1 @@@ ROGUE MODE // 2026.09.07 @ 16:05:49 Player: AnotherZach Result: Destroyed by Y-64 Sentinel with Wave Gun Performance ------------- Evolutions (6) 3000 Regions Visited (22) 4400 Robots Destroyed (312) 1560 Value Destroyed (12611) 12611 Prototype IDs (34) 680 Alien Tech Used (0) 0 Bonus (22842) 22842 TOTAL SCORE: 45093 Bonus ------- High Alert Combat Kills 1525 Follower Combat Kills 2107 Prayed to X0-1V1 5000 Major X0-1V1 Interference 12800 Entered DSFs 1000 Network Hubs Disabled 200 Met Data Miner 300 Met R17 at Cetus 500 Friendly Fire -590 Cogmind --------- Core Integrity 0/960 Matter 458/500 Energy 19/100 System Corruption 16% Temperature Cool (9) Movement Core (50) Location -4/Hub_04(d) Parts ------- > --- POWER (4) -------- (None) > --- PROPULSION (4) --- Myomer Exoskeleton > --- UTILITY (8) ------ Scrap Engine Advanced Cryofiber Web Advanced Heat Sink Advanced Salvage Targeting Computer > --- WEAPON (4) ------- (None) > --- INVENTORY (5) ---- Myomer Leg Advanced Target Analyzer Improved Hacking Suite Improved Hacking Suite Improved System Shield Peak State ------------ > --- POWER ------------ Particle-Quantum Reactor > --- PROPULSION ------- Myomer Exoskeleton > --- UTILITY ---------- Armored Scrap Engine Advanced Cryofiber Web Advanced Heat Sink Advanced Heat Sink High-capacity Storage Unit Advanced Salvage Targeting Computer Centrium Medium Armor Plating > --- WEAPON ----------- Advanced KE Penetrator Ballistic Construct/G Hpw. Thermal Construct/G Hyp. Ballistic Penetrator Construct/C > --- INVENTORY -------- Protomatter Antimatter Reactor Flexi-carbon Leg Myomer Leg Advanced VSS Leg Advanced Heat Sink Advanced Heat Sink Matter Compressor Structural Scanner Improved Weapon Cycler Centrium Medium Armor Plating Improved Shield Generator Hacking Suite Trap Extractor X0-1V1's Piety Tracker Advanced Variable Charge Gun KE Penetrator Advanced KE Penetrator Heavy Scimitar of Distortion [Rating: 142] Favorites ----------- Power Constructs Engine Light Ion Engine Power Core Light Nuclear Core Reactor Constructs Propulsion Constructs Treads Light Treads Leg Constructs Hover Unit Hover Unit Utility Armored Scrap Engine Device Armored Scrap Engine Storage Large Storage Unit Processor Improved Signal Interpreter Hackware Hacking Suite Protection Improved Medium Armor Plating Weapon Constructs Energy Gun Constructs Energy Cannon Constructs Ballistic Gun Constructs Ballistic Cannon Improved Light Cannon Launcher Proton Missile Launcher Special Weapon Mining Laser Impact Weapon Thunder Hammer Slashing Weapon Heavy Scimitar of Distortion Piercing Weapon Spear Special Melee Weapon Datajack Build | -11 -10 -9 -9 -9 -7 -7 -7 -7 -6 -6 -6 -6 -5 -5 -5 -5 -5 -4 -4 -4 -4 -4 ------- Run | Yrd Mat Mat Sto Rec Fac Was Fac DSF Fac Low Low Dat Pro Fac Was Fac DSF Fac Ext Cet Arc Hub Slots Evolved 12 | . . 2 . . 4 . . . 2 . . . . 2 . . . 2 . . . . Power 3 | . . . . . 1 . . . . . . . . . . . . 2 . . . . Propulsion 2 | . . 1 . . 1 . . . . . . . . . . . . . . . . . Utility 6 | . . . . . 2 . . . 2 . . . . 2 . . . . . . . . Weapon 1 | . . 1 . . . . . . . . . . . . . . . . . . . . Parts Attached 146 | 6 10 9 6 4 5 1 . 5 13 8 2 . . 8 4 . 3 19 16 6 7 14 Power 13 | 1 1 . 1 . 1 . . . . . . . . . 1 . . 2 3 1 1 1 Engine 4 | 1 . . 1 . 1 . . . . . . . . . . . . . . . 1 . Core 6 | . 1 . . . . . . . . . . . . . . . . 1 3 . . 1 Reactor 3 | . . . . . . . . . . . . . . . 1 . . 1 . 1 . . Propulsion 6 | 2 1 2 . 1 . . . . . . . . . . . . . . . . . . Treads 6 | 2 1 2 . 1 . . . . . . . . . . . . . . . . . . Leg . | . . . . . . . . . . . . . . . . . . . . . . . Wheel . | . . . . . . . . . . . . . . . . . . . . . . . Hover . | . . . . . . . . . . . . . . . . . . . . . . . Flight . | . . . . . . . . . . . . . . . . . . . . . . . Utility 82 | 1 4 1 3 2 2 . . 5 10 6 1 . . 5 1 . 3 12 10 3 6 7 Device 47 | . 2 . 2 2 1 . . 2 6 6 . . . 2 1 . 1 7 7 1 4 3 Storage 8 | 1 1 . 1 . . . . . 1 . . . . . . . 1 1 2 . . . Processor 9 | . 1 . . . . . . 2 1 . 1 . . 1 . . 1 . 1 . . 1 Hackware 13 | . . 1 . . 1 . . . 2 . . . . 2 . . . 4 . . . 3 Protection 5 | . . . . . . . . 1 . . . . . . . . . . . 2 2 . Artifact . | . . . . . . . . . . . . . . . . . . . . . . . Weapon 45 | 2 4 6 2 1 2 1 . . 3 2 1 . . 3 2 . . 5 3 2 . 6 Energy Gun 8 | . 1 1 . . . . . . . . 1 . . 1 . . . . 1 . . 3 Energy Cannon 4 | . . . . . . . . . 1 . . . . 2 . . . 1 . . . . Ballistic Gun 18 | 2 1 4 1 1 . 1 . . . . . . . . . . . 3 1 2 . 2 Ballistic Cannon 2 | . . 1 . . . . . . 1 . . . . . . . . . . . . . Launcher 3 | . . . . . . . . . . 2 . . . . 1 . . . . . . . Special Weapon 1 | . 1 . . . . . . . . . . . . . . . . . . . . . Impact Weapon 2 | . . . . . . . . . . . . . . . 1 . . 1 . . . . Slashing Weapon 1 | . . . . . . . . . . . . . . . . . . . . . . 1 Piercing Weapon 2 | . . . . . 2 . . . . . . . . . . . . . . . . . Special Melee Weapon 4 | . 1 . 1 . . . . . 1 . . . . . . . . . 1 . . . Unidentified Prototypes 13 | . . 1 . 2 . . . 1 2 . . . . . 1 . . 1 1 2 . 2 Parts Lost 64 | . . . 2 2 . . . 3 1 5 . . 1 4 2 . 4 7 2 2 1 28 Power 11 | . . . 1 . . . . . . 1 . . . 2 . . . 1 . . . 6 Propulsion 4 | . . . . 1 . . . . . . . . . . . . . . . . . 3 Utility 18 | . . . . . . . . . . 2 . . . 1 1 . 2 2 1 . 1 8 Weapon 31 | . . . 1 1 . . . 3 1 2 . . 1 1 1 . 2 4 1 2 . 11 Highest Loss Streak 17 | . . . 2 2 . . . 2 1 3 . . 1 4 2 . 3 3 2 2 1 17 To Critical Strikes 1 | . . . . . . . . . . . . . . . . . . . . 1 . . Average Backups 15 | 2 8 13 13 6 9 14 14 13 16 17 23 23 21 20 22 23 22 15 17 18 18 14 Power 1 | . . . . . 1 2 2 1 1 1 2 2 2 1 1 1 1 1 1 . 1 . Propulsion 1 | 1 3 2 3 1 . . . 1 3 1 . . . . 3 3 2 . 2 3 3 3 Utility 8 | . 3 6 4 2 7 10 11 7 7 7 10 12 11 11 11 11 11 9 11 10 10 7 Weapon 3 | . 1 1 2 1 . . . 2 3 5 8 8 6 6 7 8 7 3 1 3 4 2 Tool/Special . | . . . . . . . . . . . . . . . . . . . . . . . Unused Backups 72 | . 4 3 4 9 . . . 5 3 6 . 1 . 2 5 . 3 5 5 5 4 8 Power 6 | . . . . 1 . . . 1 1 . . 1 . 1 1 . . . . . . . Propulsion 23 | . 3 1 1 4 . . . . . 5 . . . . 1 . 2 1 1 1 . 3 Utility 30 | . . 1 2 . . . . 4 1 1 . . . 1 3 . . 3 3 2 4 5 Weapon 9 | . 1 1 1 3 . . . . . . . . . . . . 1 1 . 1 . . Tool/Special 4 | . . . . 1 . . . . 1 . . . . . . . . . 1 1 . . Average Slot Usage (%) 72 | . 97 99 98 79 58 50 52 56 63 60 66 68 68 71 71 72 69 62 70 64 65 61 Engine 2 | . 2 . 4 8 5 5 5 1 3 2 . . . . 1 . . . . . . 2 Core 4 | . 11 10 5 . 2 . . 5 2 2 3 6 5 4 3 5 4 3 4 . . . Reactor 1 | . . . . . . . . . . . 2 . . . . . . 2 6 5 5 4 Treads 7 | . 27 30 29 15 . . . . 1 . . 6 5 . . . . . 2 1 5 2 Leg 1 | . . . . 2 2 5 5 3 2 1 . . . . 1 5 5 1 . . . 2 Hover 1 | . . . . . . . . 3 2 3 5 . . . . . . . . 2 . . Flight 1 | . . . . 1 3 . . . . . . . . 5 2 . . 2 1 . . . Device 14 | . 2 2 6 8 12 11 11 9 15 18 20 18 18 17 15 16 16 12 26 20 22 19 Storage 6 | . 14 10 10 3 7 5 5 6 6 5 5 6 6 5 5 5 5 4 4 5 5 4 Processor 4 | . 9 . . . . . . 2 5 3 3 6 6 10 11 11 9 4 3 5 5 5 Hackware 2 | . . 7 3 . 1 . . . 2 . . . . 3 5 5 5 10 . . . 2 Energy Gun 5 | . 11 10 . . 1 . . 1 10 6 11 12 4 . 5 11 9 5 2 5 5 6 Energy Cannon 3 | . . . . 1 7 5 5 13 6 4 4 6 6 7 9 10 7 3 . 4 5 1 Ballistic Gun 8 | . 12 21 32 26 4 . 5 . . . . . . 5 6 . . 3 11 8 10 6 Ballistic Cannon 3 | . . 5 6 5 2 5 5 6 2 6 6 6 7 4 . . . . 5 . . . Peak Build Rating 142 | 6 20 26 22 42 69 75 75 75 96 117 119 117 117 104 126 126 127 129 136 139 142 141 Average Rating 79 | 5 11 21 20 30 57 69 75 64 85 103 113 117 104 100 106 125 118 113 126 134 137 114 On Entrance 83 | . 6 20 22 21 39 69 75 75 61 95 109 117 117 94 93 126 126 114 128 127 138 140 Avg Prop Armor Cover (%) 34 | . . . . . . . . . . . . . . . . . . . . . . 34 Naked Turns . | . . . . . . . . . . . . . . . . . . . . . . . Heaviest Build 156 | 12 31 38 39 38 55 59 59 70 140 144 133 131 143 130 135 134 135 125 148 147 141 156 Greatest Support 175 | 40 40 60 60 60 86 86 86 86 111 98 99 99 143 143 143 97 97 120 134 175 175 152 Greatest Overweight (x) 2 | . . . . . . . . . 1 2 2 1 1 . 1 1 1 1 1 1 . 1 Average Overweight (x) . | . . . . . . . . . . . 1 1 . . . 1 1 . . . . . Largest Inventory Capacity 25 | 8 15 15 15 15 15 15 15 15 25 25 25 25 25 25 25 25 25 25 20 20 20 20 Average Capacity 17 | 7 10 15 15 8 15 15 15 15 20 20 24 25 25 25 25 25 25 16 18 20 20 19 Most Carried 25 | 7 13 15 15 15 15 15 15 15 21 25 25 24 25 25 25 25 25 25 20 20 20 20 Average Carried 16 | 2 8 13 14 7 10 15 15 14 17 18 23 24 22 21 24 25 24 16 18 19 19 14 Final Capacity 25 | 8 15 15 15 5 15 15 15 15 25 25 25 25 25 25 25 25 25 15 20 20 20 5 Final Carried 25 | 7 13 15 15 5 15 15 15 14 20 25 25 24 22 25 25 25 25 15 20 20 20 5 Scrap Engine Consumption 316 | . . . . 39 15 3 . 19 25 21 11 1 14 14 13 . 8 21 53 17 9 33 Constructs Created 32 | . . . . 4 1 . . 3 1 4 2 . . 1 2 . . 7 1 2 . 4 Constructs Modified 171 | . . . . 10 10 . . 2 18 33 21 . 8 . 17 . 5 13 15 9 4 6 Transmogrified Parts 4 | . 1 3 . . . . . . . . . . . . . . . . . . . . Integrity Recovered 44 | . . 44 . . . . . . . . . . . . . . . . . . . . Class Distribution -------------------- 54% | Construct 8% | Mutant 7% | Scavenger-Gunner 6% | Generator-Construct 5% | Scientist-Gunner Dominant Class ---------------- Mutant | -10/Materials Scavenger-Gunner | -9/Materials Scientist-Gunner | -9/Storage Construct | -9/Recycling Construct | -7/Factory Construct | -7/Waste Construct | -7/Factory Construct | -7/DSF Construct | -6/Factory Construct | -6/Lower Caves Construct | -6/Lower Caves Construct | -6/Data Miner Construct | -5/Proximity Caves Construct | -5/Factory Construct | -5/Waste Construct | -5/Factory Construct | -5/DSF Hacker-Construct | -4/Factory Generator-Tank | -4/Extension Generator-Construct | -4/Cetus Generator-Construct | -4/Archives Scavenger-Construct | -4/Hub_04(d) Resources | -11 -10 -9 -9 -9 -7 -7 -7 -7 -6 -6 -6 -6 -5 -5 -5 -5 -5 -4 -4 -4 -4 -4 ----------- Run | Yrd Mat Mat Sto Rec Fac Was Fac DSF Fac Low Low Dat Pro Fac Was Fac DSF Fac Ext Cet Arc Hub Matter Collected 8971 | 212 499 532 477 798 137 23 . 224 892 520 738 . 372 265 704 . 260 659 854 240 221 344 Remotely . | . . . . . . . . . . . . . . . . . . . . . . . Salvage Created 16783 | 96 693 903 536 1094 460 75 . 456 1349 791 569 . 441 1119 1319 . 531 2062 2375 206 368 1340 Parts 764 | 6 45 55 30 51 30 3 . 23 44 30 22 . 24 58 28 . 23 80 106 8 27 71 Haulers Intercepted 10 | . 2 2 1 . . . . . 2 . . . . 1 . . . 1 1 . . . Recyclers Shooed 9 | 2 1 1 . . . . . . 1 . . . . . . . . 1 3 . . . Parts Field Recycled . | . . . . . . . . . . . . . . . . . . . . . . . Retrieved Matter . | . . . . . . . . . . . . . . . . . . . . . . . Parts Self-Destructed 43 | . . . . . . . . . . 20 9 . 14 . . . . . . . . . Prevented 20 | . . . . . . . . . . 6 4 . 10 . . . . . . . . . Parts Restored . | . . . . . . . . . . . . . . . . . . . . . . . Kills | -11 -10 -9 -9 -9 -7 -7 -7 -7 -6 -6 -6 -6 -5 -5 -5 -5 -5 -4 -4 -4 -4 -4 ------- Run | Yrd Mat Mat Sto Rec Fac Was Fac DSF Fac Low Low Dat Pro Fac Was Fac DSF Fac Ext Cet Arc Hub Combat Hostiles Destroyed 224 | . 9 22 13 13 6 1 . 12 12 15 6 . 13 13 9 . 8 26 26 2 2 16 Melee 5 | . . . . . 2 . . . . . . . . . . . . 1 . . . 2 Guns 115 | . 9 20 8 10 2 . . 1 3 1 3 . 1 6 3 . 5 8 21 2 . 12 Cannons 60 | . . 2 5 3 2 1 . 11 6 7 2 . 3 3 3 . 1 4 5 . 2 . AOE 24 | . . . . . . . . . 1 2 . . 9 4 3 . . 4 . . . 1 Classes Destroyed 24 | 2 7 2 . 2 1 . . 2 1 2 3 . . . 1 . 1 . . . . . Worker 20 | . 2 1 . . 2 . . . 5 . . . . 7 . . . 3 . . . . Builder 10 | . 2 1 . 1 . . . . . . . . . 3 . . . 3 . . . . Tunneler 5 | 2 1 . . . . . . . 1 . . . . . . . . . 1 . . . Hauler 10 | . 2 2 1 . . . . . 2 . . . . 1 . . . 1 1 . . . Recycler 18 | 1 . 2 . 6 1 . . . 3 . . . . 1 . . . 2 2 . . . Mechanic 2 | . 1 1 . . . . . . . . . . . . . . . . . . . . Operator 11 | . 1 . 1 . 2 . . . 1 . . . . . . . . 1 1 . 4 . Drone 1 | . . . . . . . . . . 1 . . . . . . . . . . . . Watcher 12 | . 2 4 1 . . . . . 2 . . . . 1 . . . . . 1 . 1 Swarmer 49 | . . 9 4 3 . . . 7 . 4 . . 11 5 2 . . . 4 . . . Cutter 2 | . . . . . . . . 2 . . . . . . . . . . . . . . Grunt 83 | . 9 10 3 3 3 . . . 5 8 2 . . 5 . . 6 10 10 . . 9 Duelist 1 | . . . . . . . . . . . 1 . . . . . . . . . . . Sentry 34 | . . 3 6 4 1 1 . 1 1 1 1 . 1 . . . . 3 8 . 2 1 Specialist 5 | . . . . . . . . 2 1 . . . . . . . 1 . . . . 1 Hunter 16 | . . . . . . . . . 3 . . . 1 3 . . . 6 1 . . 2 Programmer 20 | . . . . . 2 . . . 2 1 1 . . . 2 . . 7 2 . . 3 Heavy 1 | . . . . . . . . . . . . . . . . . 1 . . . . . Behemoth 1 | . . . . . . . . . . . 1 . . . . . . . . . . . Compactor 5 | . . . . . . . . . . . . . . . 5 . . . . . . . Cetus Guard 2 | . . . . . . . . . . . . . . . . . . . . 2 . . Scientist 2 | . . . . 2 . . . . . . . . . . . . . . . . . . Scrapper 3 | . . . . 3 . . . . . . . . . . . . . . . . . . Samaritan 2 | . . . . . . . . . . . 2 . . . . . . . . . . . Tinkerer 1 | . . . . . . . . . . 1 . . . . . . . . . . . . Thug 2 | . . . . . . . . . 1 . . . . . . . . . 1 . . . Best Kill Streak 22 | 2 6 8 5 5 2 1 . 3 5 4 4 . 4 22 3 . 3 5 9 3 2 4 Combat Bots Only 9 | . 4 5 5 3 2 1 . 3 3 4 4 . 4 9 3 . 3 4 5 2 2 4 Max Kills in Single Turn 6 | 1 2 3 2 2 1 1 . 2 2 1 1 . 3 6 2 . 2 4 2 1 1 1 Gunslinging 1 | . . 1 . 1 . . . . . . . . . . . . . . . . . . Exploded 4 | . . . . . . . . . 1 1 . . 3 2 2 . . 4 . . . 1 Melee 1 | . . . . . 1 . . . . . . . . . . . . 1 . . . 1 Uniques/NPCs Destroyed . | . . . . . . . . . . . . . . . . . . . . . . . Combat | -11 -10 -9 -9 -9 -7 -7 -7 -7 -6 -6 -6 -6 -5 -5 -5 -5 -5 -4 -4 -4 -4 -4 -------- Run | Yrd Mat Mat Sto Rec Fac Was Fac DSF Fac Low Low Dat Pro Fac Was Fac DSF Fac Ext Cet Arc Hub Hostile Shots Fired 2066 | . 49 63 29 65 92 45 . 112 65 145 62 . 49 115 16 . 77 339 213 51 14 465 Missed 727 | . 14 17 11 17 43 12 . 42 23 27 17 . 14 57 3 . 33 135 88 17 5 152 Hits 1339 | . 35 46 18 48 49 33 . 70 42 118 45 . 35 58 13 . 44 204 125 34 9 313 Melee 21 | . . . . . . . . 3 . 11 3 . . . . . . . . . . 4 Projectile 1318 | . 35 46 18 48 49 33 . 67 42 107 42 . 35 58 13 . 44 204 125 34 9 309 AOE 4 | . . . . . . . . . . . . . . . . . . 4 . . . . Critical Strikes 73 | . . 1 . 4 4 . . 4 1 6 . . . 3 1 . 3 11 6 6 1 22 Part Disruptions 5 | . . . . . . . . . . . . . . . . . 1 . . . . 4 Damage Taken 25699 | . 516 684 317 745 744 255 . 1163 879 2248 1094 . 672 1272 198 33 874 4326 1847 976 266 6590 Core 2547 | . 35 115 . 8 128 12 . 155 150 97 116 . 107 33 30 . 53 417 178 69 25 819 Absorbed by Shields 1002 | . . . . . . . . . . . . . . . . . 50 96 740 . . 116 Ignored by Resistances 75 | . . . . . . . . . . . . . . . . . . 65 10 . . . Regen/Repaired (Parts) 9842 | . 63 124 221 84 272 36 . 231 799 1404 794 . 201 . 796 . 265 2552 642 616 206 536 Core Remaining (%) 75 | 100 100 . . 96 . . . 42 . . . . 28 . . . 85 . . . . . Volleys Fired 699 | 8 83 45 22 39 21 3 . 28 42 42 26 . 13 21 35 1 22 64 75 24 36 49 Largest 5 | 2 2 4 4 4 3 2 . 4 4 4 4 . 4 4 4 4 4 5 5 4 4 4 Hottest 344 | 40 165 176 102 117 127 127 . 187 344 255 215 . 165 182 262 215 326 309 271 226 226 243 Shots Fired 2119 | 16 138 160 79 133 44 6 . 87 129 102 94 . 48 73 137 4 58 220 290 76 73 152 Gun 1308 | 16 107 132 64 112 23 . . 8 70 15 40 . 12 29 67 2 26 131 196 57 61 140 Cannon 752 | . . 27 15 21 21 6 . 79 59 81 54 . 28 39 63 1 32 89 94 19 12 12 Launcher 27 | . . . . . . . . . . 6 . . 8 5 7 1 . . . . . . Special 32 | . 31 1 . . . . . . . . . . . . . . . . . . . . Kinetic 1320 | 16 65 126 79 129 15 3 . 25 17 71 54 . 29 52 96 2 25 139 230 33 43 71 Thermal 631 | . 73 34 . 4 21 3 . 62 79 22 14 . . 16 34 1 29 55 60 25 18 81 Explosive 8 | . . . . . . . . . . . . . . . 7 1 . . . . . . Electromagnetic 160 | . . . . . 8 . . . 33 9 26 . 19 5 . . 4 26 . 18 12 . Robot Hit Streak 36 | 8 10 13 36 21 8 5 . 7 13 16 22 . 10 11 34 . 16 17 21 8 17 22 Robot Miss Streak 12 | 1 3 12 2 3 4 2 . 4 3 5 3 . 6 5 2 . 2 5 3 3 2 3 Penetration Max 2 | . . . . . . . . . . . 1 . . 1 . . 1 1 2 1 . 1 Secondary Targets 10 | . 1 1 . 3 . . . . . . . . . . . . . . 1 . . 4 Max Gunslinging Chain 1 | . 1 1 . 1 . . . . . . . . . . . . . . 1 . . 1 Shots Hit Robots 1322 | 13 76 92 49 90 37 7 . 28 70 36 61 . 20 41 84 . 36 153 206 52 52 119 Core Hits 650 | 4 31 69 22 32 16 3 . 19 40 23 29 . 25 56 35 . 23 54 84 19 22 44 Critical Kills 20 | . . . . . . 1 . . 4 4 . . . . . . 2 4 2 1 1 1 Critical Parts Destroyed 29 | . 1 1 1 . . . . . . . 1 . 2 . . . . 10 6 1 3 3 Critical Strikes 63 | . 1 1 1 . . 1 . . 4 7 3 . 2 . 1 . 2 16 9 3 5 7 Burn 4 | . . . . . . . . . . . 1 . . . . . . . 1 . . 2 Meltdown 11 | . . . . . . . . . 3 3 . . . . . . 2 3 . . . . Destroy 35 | . 1 1 1 . . 1 . . 1 2 2 . 2 . 1 . . 3 8 2 5 5 Blast 4 | . . . . . . . . . . 2 . . . . . . . 2 . . . . Corrupt 1 | . . . . . . . . . . . . . . . . . . . . 1 . . Smash 8 | . . . . . . . . . . . . . . . . . . 8 . . . . Melee Attacks 81 | . 1 . . 1 22 11 2 . 1 . . . . 1 2 . 1 27 . . . 12 Impact 28 | . . . . . . . . . . . . . . . . . 1 27 . . . . Slashing 12 | . . . . . . . . . . . . . . . . . . . . . . 12 Piercing 35 | . . . . . 22 11 2 . . . . . . . . . . . . . . . Sneak Attacks 10 | . 1 . . 1 2 1 . . 1 . . . . 1 2 . . 1 . . . . Combat Hostiles . | . . . . . . . . . . . . . . . . . . . . . . . Follow-up Attacks 2 | . . . . . . . . . . . . . . . . . . 2 . . . . Damage Inflicted 40977 | 187 1044 1810 842 1518 1158 237 . 809 3032 1703 1762 . 978 2928 3639 . 1013 6173 6046 1444 1302 3352 Guns 19553 | 187 1020 1343 663 1235 198 . . 84 744 59 843 . 163 515 1121 . 430 2054 4224 1033 1024 2613 Cannons 13917 | . . 261 179 283 602 119 . 725 1848 1082 919 . 343 597 1464 . 583 2222 1808 411 278 193 Explosions 5481 | . . 206 . . . . . . 440 562 . . 472 1816 1054 . . 763 . . . 168 Melee 1988 | . . . . . 358 118 . . . . . . . . . . . 1134 . . . 378 Ramming 14 | . . . . . . . . . . . . . . . . . . . 14 . . . Kinetic 20057 | 187 604 1223 842 1437 106 27 . 138 173 771 1107 . 366 797 2034 . 220 2415 5030 547 689 1344 Thermal 12998 | . 440 381 . 81 602 92 . 671 1513 475 253 . 134 1341 775 . 720 2235 1002 486 335 1462 Explosive 1036 | . . 206 . . . . . . . . . . . . 830 . . . . . . . Electromagnetic 4884 | . . . . . 92 . . . 1346 457 402 . 478 790 . . 73 389 . 411 278 168 Impact 1134 | . . . . . . . . . . . . . . . . . . 1134 . . . . Slashing 378 | . . . . . . . . . . . . . . . . . . . . . . 378 Piercing 476 | . . . . . 358 118 . . . . . . . . . . . . . . . . Highest Corruption 17 | . . . 8 8 3 3 3 3 3 4 2 . 4 . 2 2 8 10 17 17 17 16 Average Corruption 6 | . . . 8 8 2 3 3 3 1 3 1 . 4 . 1 2 7 5 11 17 9 4 Corruption Purged 19 | . . . . . . . . . . . . . . . . . . . . . 14 5 Corruption Blocked . | . . . . . . . . . . . . . . . . . . . . . . . Effects 252 | . . . 12 33 12 3 . 5 6 22 7 . 1 . 4 2 13 11 64 21 17 19 Message Errors 53 | . . . 3 3 3 1 . 1 1 8 1 . . . 2 . 1 3 11 8 3 4 Matter Fused 55 | . . . 4 9 4 2 . 3 1 3 3 . 1 . 1 . 6 3 9 2 1 3 Heat Flow Errors 31 | . . . 1 4 1 . . . 3 2 1 . . . 1 1 4 . 8 2 1 2 Energy Discharges 28 | . . . 2 1 1 . . 1 1 2 1 . . . . . 1 1 6 5 1 5 Parts Rejected 2 | . . . . . 1 . . . . . . . . . . . . . 1 . . . Parts Fused 1 | . . . . 1 . . . . . . . . . . . . . . . . . . Data Loss (minor) 22 | . . . 1 3 2 . . . . 2 1 . . . . 1 1 1 6 1 3 . Data Loss (major) 11 | . . . . 3 . . . . . 2 . . . . . . . . 3 . 2 1 Misfires 12 | . . . . 5 . . . . . . . . . . . . . 1 5 . . 1 Alerts 5 | . . . . 1 . . . . . 2 . . . . . . . . 1 . 1 . Misdirections 6 | . . . . . . . . . . . . . . . . . . . 4 . 1 1 Weapon Failures 26 | . . . 1 3 . . . . . 1 . . . . . . . 2 10 3 4 2 Overload Shots 2 | . . . . . . . . . 2 . . . . . . . . . . . . . Overflow Damage 1227 | . . . . . 61 . . 6 51 75 8 . . 96 86 . . 820 2 22 . . Projectiles 287 | . . . . . 28 . . 6 51 72 8 . . 8 30 . . 60 2 22 . . Explosions 269 | . . . . . . . . . . 3 . . . 88 56 . . 122 . . . . Melee 671 | . . . . . 33 . . . . . . . . . . . . 638 . . . . Knockbacks 53 | . . . 1 1 . . . 3 . 3 3 . 5 4 1 . 1 11 20 . . . Impact 7 | . . . . . . . . . . . . . . . . . . 7 . . . . Kinetic 44 | . . . 1 1 . . . 3 . 3 3 . 5 4 1 . 1 3 19 . . . Secondary 2 | . . . . . . . . . . . . . . . . . . 1 1 . . . Self-Inflicted Damage 790 | . . 158 . . . . . . 177 135 . . 9 25 3 34 . 197 7 . . 45 Shots 18 | . . 2 . . . . . . 4 4 . . 1 1 1 1 . 3 . . . 1 Rammed 1 | . . . . . . . . . . . . . . . . . . . 1 . . . Targets Rammed 1 | . . . . . . . . . . . . . . . . . . . 1 . . . Kicked . | . . . . . . . . . . . . . . . . . . . . . . . Crushed . | . . . . . . . . . . . . . . . . . . . . . . . Highest Temperature 548 | . 216 276 75 314 203 174 . 266 378 462 367 . 334 197 286 198 217 548 457 10 . 237 Average Temperature 104 | . 74 100 20 115 55 92 . 64 77 174 74 . 66 57 104 89 100 142 126 5 . 102 Received Heat Transfer 4869 | . 246 159 66 328 369 78 . 138 78 715 246 . 63 309 . . 260 482 323 27 27 955 Effects 20 | . . . . 3 . . . 2 . 6 . . . . 1 . . 6 . . . 2 Shutdowns 5 | . . . . . . . . . . 3 . . . . . . . 2 . . . . Energy Bleed 5 | . . . . . . . . . . 1 . . . . 1 . . 1 . . . 2 Interference 8 | . . . . 3 . . . 2 . . . . . . . . . 3 . . . . Short Circuit 2 | . . . . . . . . . . 2 . . . . . . . . . . . . Siege Activations . | . . . . . . . . . . . . . . . . . . . . . . . Martial Activations . | . . . . . . . . . . . . . . . . . . . . . . . Shielding Activations . | . . . . . . . . . . . . . . . . . . . . . . . Robots Disrupted 8 | . . . . . . . . . . . 1 . . 2 2 . . 1 2 . . . Combat Hostiles 7 | . . . . . . . . . . . 1 . . 1 2 . . 1 2 . . . Robots Corrupted 11 | . . . . . . . . . . 2 1 . . . . . . 8 . . . . Combat Hostiles 10 | . . . . . . . . . . 2 1 . . . . . . 7 . . . . Parts Fried 22 | . . . . . . . . . 10 1 . . 2 3 . . . 5 . . 1 . Impact Corruptions 14 | . . . . . . . . . . . . . . . . . . 14 . . . . Robots Melted 13 | . . . . . . . . . 3 3 . . . . . . 2 3 . . . 2 Combat Hostiles 10 | . . . . . . . . . 2 3 . . . . . . 2 2 . . . 1 Parts Melted 36 | . 1 1 . 1 . . . 5 8 1 1 . 1 . . . 8 4 3 . . 2 Heat Transferred 16174 | . 1049 466 . 200 74 . . 1110 1692 250 148 . 150 1498 1000 . 1072 2674 1720 703 444 1924 Parts Sabotaged . | . . . . . . . . . . . . . . . . . . . . . . . Parts Stolen 1 | . . . . . . . . . . 1 . . . . . . . . . . . . Parts Stripped . | . . . . . . . . . . . . . . . . . . . . . . . Power Chain Reactions 19 | . . . . . . . . . 3 2 1 . 2 8 3 . . . . . . . Alert | -11 -10 -9 -9 -9 -7 -7 -7 -7 -6 -6 -6 -6 -5 -5 -5 -5 -5 -4 -4 -4 -4 -4 ------- Run | Yrd Mat Mat Sto Rec Fac Was Fac DSF Fac Low Low Dat Pro Fac Was Fac DSF Fac Ext Cet Arc Hub Maximum Alert Level 4 | . . 1 1 . 2 . . 2 3 . . . . 2 1 . 1 3 4 3 2 2 Low Security (%) 52 | 100 100 82 83 100 5 100 100 54 1 . . . . 87 81 100 57 9 . . . 36 Level 1 19 | . . 17 16 . 35 . . 25 30 . . . . 2 18 . 42 46 . . 99 60 Level 2 18 | . . . . . 58 . . 20 41 . . . . 10 . . . 32 71 . . 3 Level 3 7 | . . . . . . . . . 25 . . . . . . . . 11 10 100 . . Level 4 1 | . . . . . . . . . . . . . . . . . . . 18 . . . Level 5 . | . . . . . . . . . . . . . . . . . . . . . . . High Security . | . . . . . . . . . . . . . . . . . . . . . . . Max Security . | . . . . . . . . . . . . . . . . . . . . . . . Sterilizations 2 | . . . . . . . . 1 . . . . . . . . 1 . . . . . Peak Influence 1509 | 5 106 297 237 84 522 194 75 487 945 . . . . 518 242 118 302 867 1509 842 400 405 Initial 814 | . . . 125 76 200 173 74 52 255 . . . . 65 178 . 71 158 423 814 309 98 Average 272 | . 23 147 145 26 414 152 74 221 474 . . . . 112 107 45 181 438 724 792 341 252 Influence Increases 10754 | 15 313 793 403 278 911 44 1 465 1154 345 145 . 364 732 198 122 271 1391 1706 186 162 755 Destroy 0b10 Robot/C 5240 | . 180 480 260 200 200 20 . 240 400 300 120 . 300 340 80 . 160 640 760 140 60 360 Destroy 0b10 Robot/NC 515 | 15 55 55 15 35 30 . . 5 95 . 5 . . 70 . . . 55 50 10 20 . Destroy Leader 874 | . 48 102 94 . 52 . . 30 120 30 20 . 30 54 . . 20 124 90 . . 60 Allied During Kill 758 | . . 8 . . 26 . . . 49 . . . 34 28 4 . . 32 545 14 6 12 Trap Triggered on 0b10 70 | . 10 . . . 10 . . . . . . . . . . . 10 . 20 . . 20 Successful Hack 203 | . 15 10 3 27 20 . . . 31 . . . . 10 . 4 . 58 25 . . . Select Force Hacks 50 | . . . . . . . . . . . . . . . . . . . . . . 50 Disable Machine 1050 | . . 60 30 15 15 . . . 375 . . . . 105 . 60 . 225 . . 60 105 Destroy Structure 813 | . 5 33 1 1 7 9 1 10 54 . . . . 80 114 58 6 212 126 22 16 58 Advance Influence 200 | . . . . . 200 . . . . . . . . . . . . . . . . . Partial Spotted 60 | . . . . . 15 15 . . 15 . . . . 15 . . . . . . . . Lose Combat Pursuer 795 | . . 45 . . 210 . . 180 15 15 . . . 30 . . 75 45 90 . . 90 Miscellaneous 126 | . . . . . 126 . . . . . . . . . . . . . . . . . Influence Decreases 10455 | 15 313 496 504 474 414 434 33 53 1202 611 311 7 260 326 708 20 71 828 1116 867 655 737 Entered New Map 3385 | . . . 172 120 . 324 33 23 232 163 34 7 . 39 332 . 31 144 442 641 465 183 Time Decay 5307 | 15 311 346 302 353 374 110 . . 470 398 277 . 230 227 356 20 . 404 474 206 180 254 Lost Part 621 | . . . 20 1 . . . 30 10 50 . . 10 40 20 . 40 70 20 20 10 280 Lost Ally 390 | . . . 10 . 40 . . . 40 . . . 20 20 . . . 60 180 . . 20 Purge Threat 752 | . 2 150 . . . . . . 450 . . . . . . . . 150 . . . . Squads Dispatched 60 | . 1 1 3 . 12 . . 2 14 . 1 . . 4 . . 1 9 6 . . 6 Investigation 15 | . . 1 . . 3 . . . 1 . . . . 2 . . . 3 4 . . 1 Extermination 8 | . . . . . 2 . . . 2 . . . . . . . . 2 . . . 2 Reinforcement 20 | . 1 . 2 . 4 . . 2 4 . . . . 1 . . 1 2 1 . . 2 Assault 9 | . . . 1 . 1 . . . 4 . 1 . . 1 . . . . 1 . . . Garrison 8 | . . . . . 2 . . . 3 . . . . . . . . 2 . . . 1 Intercept . | . . . . . . . . . . . . . . . . . . . . . . . Searches Triggered . | . . . . . . . . . . . . . . . . . . . . . . . Construction Impeded 2 | . . . . . . . . . 1 . . . . 1 . . . . . . . . Haulers Reinforced 3 | . . . . . 1 . . . 1 . . . . . . . . 1 . . . . Active Scanning Responses . | . . . . . . . . . . . . . . . . . . . . . . . Cargo Convoy Interrupts . | . . . . . . . . . . . . . . . . . . . . . . . Stealth | -11 -10 -9 -9 -9 -7 -7 -7 -7 -6 -6 -6 -6 -5 -5 -5 -5 -5 -4 -4 -4 -4 -4 --------- Run | Yrd Mat Mat Sto Rec Fac Was Fac DSF Fac Low Low Dat Pro Fac Was Fac DSF Fac Ext Cet Arc Hub Distress Signals 29 | . 2 3 1 . 3 . . . 2 . . . . 2 . . . 7 3 2 . 4 Communications Jammed . | . . . . . . . . . . . . . . . . . . . . . . . Distress Signals . | . . . . . . . . . . . . . . . . . . . . . . . Times Spotted 426 | . 19 31 17 13 35 6 . 26 26 18 8 . 15 24 10 . 14 43 52 10 18 41 Peak Tracking Total 15 | . 3 7 6 3 9 4 . 8 4 7 5 . 5 15 3 . 4 7 8 5 1 12 Tactical Retreats 33 | . . 2 . 1 6 . . 6 1 1 . . . 2 . . 3 3 4 . . 4 Traps | -11 -10 -9 -9 -9 -7 -7 -7 -7 -6 -6 -6 -6 -5 -5 -5 -5 -5 -4 -4 -4 -4 -4 ------- Run | Yrd Mat Mat Sto Rec Fac Was Fac DSF Fac Low Low Dat Pro Fac Was Fac DSF Fac Ext Cet Arc Hub Traps Triggered 19 | . 2 . . . 1 . . 3 2 2 . . . 2 . 1 4 . 1 . . 1 Indirectly . | . . . . . . . . . . . . . . . . . . . . . . . Trap Hack Attempts 169 | . 87 . 10 . . . . . 5 . . . . 67 . . . . . . . . Triggered 1 | . 1 . . . . . . . . . . . . . . . . . . . . . Disarmed 5 | . 1 4 . . . . . . . . . . . . . . . . . . . . Reprogrammed 26 | . 10 . 1 . . . . . 2 . . . . 7 . . . 6 . . . . Reused 7 | . 1 . . . 1 . . . . . . . . . . . 1 . 2 . . 2 Traps Extracted 17 | . . . 1 . 1 . . . 2 . . . . 6 . . . 7 . . . . Installed 22 | . . . . . 5 . . . . 2 . . . 4 . . 1 1 5 . . 4 Triggered 7 | . 1 . . . 1 . . . . . . . . . . . 1 . 2 . . 2 Most Traps Carried 9 | . . . 1 4 4 . . . 2 2 . . 2 5 4 4 4 9 9 4 4 4 Machines | -11 -10 -9 -9 -9 -7 -7 -7 -7 -6 -6 -6 -6 -5 -5 -5 -5 -5 -4 -4 -4 -4 -4 ---------- Run | Yrd Mat Mat Sto Rec Fac Was Fac DSF Fac Low Low Dat Pro Fac Was Fac DSF Fac Ext Cet Arc Hub Machines Disabled 78 | . . 4 2 1 1 . . . 25 6 . . . 7 . 4 . 15 2 . 4 7 Max in Single Turn 6 | . . 2 1 1 1 . . . 4 3 . . . 2 . 4 . 6 . . 1 1 Garrison Access 2 | . . . . . . . . . 2 . . . . . . . . . . . . . Network Hub 1 | . . . . . . . . . . . . . . . . . . . . . . 1 Machines Repaired . | . . . . . . . . . . . . . . . . . . . . . . . Machines Dismantled . | . . . . . . . . . . . . . . . . . . . . . . . Machines Sabotaged 1 | . . . . . . . . . . . . . . . . . . . . . . 1 Overloaded Fab Kills . | . . . . . . . . . . . . . . . . . . . . . . . Hacking | -11 -10 -9 -9 -9 -7 -7 -7 -7 -6 -6 -6 -6 -5 -5 -5 -5 -5 -4 -4 -4 -4 -4 --------- Run | Yrd Mat Mat Sto Rec Fac Was Fac DSF Fac Low Low Dat Pro Fac Was Fac DSF Fac Ext Cet Arc Hub Machines Accessed 69 | . 8 10 2 11 8 . 1 . 6 . . 4 . 4 . 1 . 6 7 . . 1 Terminals 40 | . 7 7 . 5 4 . 1 . 4 . . . . . . 1 . 3 7 . . 1 Fabricators 7 | . . . . . 3 . . . . . . . . 2 . . . 2 . . . . Repair Stations 4 | . 1 1 2 . . . . . . . . . . . . . . . . . . . Recycling Units 6 | . . . . 5 . . . . 1 . . . . . . . . . . . . . Scanalyzers 5 | . . 2 . . . . . . 1 . . . . 1 . . . 1 . . . . Garrison Access 2 | . . . . . 1 . . . . . . . . 1 . . . . . . . . Total Hacks 209 | . 21 39 6 30 17 . 1 . 20 . . 28 . 10 . 2 . 18 16 . . 1 Successful 134 | . 13 28 6 13 7 . 1 . 15 . . 28 . 4 . 1 . 13 4 . . 1 Failed 75 | . 8 11 . 17 10 . . . 5 . . . . 6 . 1 . 5 12 . . . Catastrophic 17 | . 1 . . 5 3 . . . 1 . . . . 1 . . . 2 4 . . . Database Lockouts . | . . . . . . . . . . . . . . . . . . . . . . . Manual 71 | . 18 10 1 17 9 . . . 8 . . . . 2 . . . 3 2 . . 1 Terminals 101 | . 18 23 . 12 8 . 1 . 12 . . . . . . 2 . 8 16 . . 1 Fabricators 18 | . . . . . 6 . . . . . . . . 5 . . . 7 . . . . Repair Stations 11 | . 3 2 6 . . . . . . . . . . . . . . . . . . . Recycling Units 17 | . . . . 16 . . . . 1 . . . . . . . . . . . . . Scanalyzers 26 | . . 14 . . . . . . 7 . . . . 2 . . . 3 . . . . Garrison Access 6 | . . . . . 3 . . . . . . . . 3 . . . . . . . . Terminal Hacks 61 | . 3 8 . 4 2 . 1 . 6 . . 28 . . . 1 . 5 3 . . . Record 12 | . . . . . . . . . . . . 11 . . . . . . 1 . . . Part Schematic 14 | . . 1 . 2 . . . . . . . 10 . . . . . . 1 . . . Robot Schematic 5 | . 1 . . . . . . . . . . 4 . . . . . . . . . . Robot Analysis 3 | . . 3 . . . . . . . . . . . . . . . . . . . . Prototype ID Bank 3 | . . . . . . . . . . . . 3 . . . . . . . . . . Open Door 1 | . . . . . . . . . . . . . . . . . . 1 . . . . Open DSF 3 | . . . . . . . 1 . 1 . . . . . . 1 . . . . . . Branch Access Points 3 | . . . . . 1 . . . 1 . . . . . . . . 1 . . . . Scanalyzer Index 1 | . . 1 . . . . . . . . . . . . . . . . . . . . Alert Level 1 | . . . . . 1 . . . . . . . . . . . . . . . . . Unreport Threat 6 | . 1 1 . . . . . . 3 . . . . . . . . 1 . . . . Locate Traps 1 | . . . . . . . . . . . . . . . . . . 1 . . . . Disarm Traps 1 | . . 1 . . . . . . . . . . . . . . . . . . . . Reprogram Traps 1 | . . . . . . . . . . . . . . . . . . 1 . . . . Patrol Status 1 | . 1 . . . . . . . . . . . . . . . . . . . . . Zone Layout 3 | . . 1 . . . . . . 1 . . . . . . . . . 1 . . . Release Object 2 | . . . . 2 . . . . . . . . . . . . . . . . . . Fabricator Hacks 10 | . . . . . 1 . . . . . . . . 3 . . . 6 . . . . Network Status 1 | . . . . . 1 . . . . . . . . . . . . . . . . . Load Schematic 4 | . . . . . . . . . . . . . . 1 . . . 3 . . . . Build 5 | . . . . . . . . . . . . . . 2 . . . 3 . . . . Repair Station Hacks 10 | . 2 2 6 . . . . . . . . . . . . . . . . . . . Scan Component 5 | . 1 1 3 . . . . . . . . . . . . . . . . . . . Repair 5 | . 1 1 3 . . . . . . . . . . . . . . . . . . . Recycling Unit Hacks 4 | . . . . 3 . . . . 1 . . . . . . . . . . . . . Retrieve Components 4 | . . . . 3 . . . . 1 . . . . . . . . . . . . . Scanalyzer 22 | . . 14 . . . . . . 7 . . . . . . . . 1 . . . . Insert Component 6 | . . 4 . . . . . . 1 . . . . . . . . 1 . . . . Analyze 4 | . . 3 . . . . . . 1 . . . . . . . . . . . . . Retrieve Study 12 | . . 7 . . . . . . 5 . . . . . . . . . . . . . Garrison Access Hacks . | . . . . . . . . . . . . . . . . . . . . . . . Unauthorized Hacks 27 | . 8 4 . 6 4 . . . 1 . . . . 1 . . . 1 1 . . 1 Terminals 17 | . 8 4 . 1 1 . . . 1 . . . . . . . . . 1 . . 1 Track 3 | . 1 1 . . . . . . 1 . . . . . . . . . . . . . Assimilate 1 | . 1 . . . . . . . . . . . . . . . . . . . . . Botnet 5 | . 1 2 . 1 . . . . . . . . . . . . . . 1 . . . Disrupt 1 | . . . . . 1 . . . . . . . . . . . . . . . . . Operators 1 | . . 1 . . . . . . . . . . . . . . . . . . . . Skim 5 | . 5 . . . . . . . . . . . . . . . . . . . . . Sabotage 1 | . . . . . . . . . . . . . . . . . . . . . . 1 Fabricators 5 | . . . . . 3 . . . . . . . . 1 . . . 1 . . . . Liberate 4 | . . . . . 2 . . . . . . . . 1 . . . 1 . . . . Recompile 1 | . . . . . 1 . . . . . . . . . . . . . . . . . Repair Stations . | . . . . . . . . . . . . . . . . . . . . . . . Recycling Units 5 | . . . . 5 . . . . . . . . . . . . . . . . . . Reject 3 | . . . . 3 . . . . . . . . . . . . . . . . . . Mask 2 | . . . . 2 . . . . . . . . . . . . . . . . . . Scanalyzers . | . . . . . . . . . . . . . . . . . . . . . . . Garrison Access . | . . . . . . . . . . . . . . . . . . . . . . . Data Cores Recovered 5 | . . . . . 1 . . . 1 . . . . 1 . . . . 2 . . . Used 2 | . . . . . 1 . . . 1 . . . . . . . . . . . . . Hacking Detections 50 | . 4 9 2 7 8 . . . 5 . . . . 4 . . . 5 6 . . . Full Trace Events 15 | . . 1 . 4 2 . . . 1 . . . . 2 . . . 2 3 . . . Feedback Events . | . . . . . . . . . . . . . . . . . . . . . . . Feedback Blocked . | . . . . . . . . . . . . . . . . . . . . . . . Robot Schematics Acquired 5 | . 1 . . . . . . . . . . 4 . . . . . . . . . . Robots Built 2 | . . . . . . . . . . . . . . . . . . 2 . . . . Authchips 1 | . . . . . . . . . . . . . . . . . . 1 . . . . Time 44 | . . . . . . . . . . . . . . . . . . 44 . . . . Total Robot Build Rating 8 | . . . . . . . . . . . . . . . . . . 8 . . . . Part Schematics Acquired 18 | . . 4 . 2 . . . . 1 . . 10 . . . . . . 1 . . . Parts Built 6 | . . . . . . . . . . . . . . 2 . . . 4 . . . . Authchips 1 | . . . . . . . . . . . . . . . . . . 1 . . . . Time 134 | . . . . . . . . . . . . . . 83 . . . 51 . . . . Total Part Build Rating 16 | . . . . . . . . . . . . . . 8 . . . 8 . . . . Part Studies Acquired 11 | . . 6 . . . . . . 5 . . . . . . . . . . . . . Parts Repaired 5 | . 1 1 3 . . . . . . . . . . . . . . . . . . . Time 142 | . 26 26 90 . . . . . . . . . . . . . . . . . . . Parts Recycled . | . . . . . . . . . . . . . . . . . . . . . . . Recycled Matter . | . . . . . . . . . . . . . . . . . . . . . . . Retrieved Matter . | . . . . . . . . . . . . . . . . . . . . . . . Retrieved Components 13 | . . . . 5 . . . . 8 . . . . . . . . . . . . . Parts Scanalyzed 5 | . . 3 . . . . . . 1 . . . . . . . . 1 . . . . Part Schematics Acquired 4 | . . 3 . . . . . . 1 . . . . . . . . . . . . . Parts Damaged . | . . . . . . . . . . . . . . . . . . . . . . . Bothacking | -11 -10 -9 -9 -9 -7 -7 -7 -7 -6 -6 -6 -6 -5 -5 -5 -5 -5 -4 -4 -4 -4 -4 ------------ Run | Yrd Mat Mat Sto Rec Fac Was Fac DSF Fac Low Low Dat Pro Fac Was Fac DSF Fac Ext Cet Arc Hub Used RIF Installer . | . . . . . . . . . . . . . . . . . . . . . . . Robots Hacked 3 | . 1 . . 1 . . . . . . . . . 1 . . . . . . . . Non-combat 3 | . 1 . . 1 . . . . . . . . . 1 . . . . . . . . Combat . | . . . . . . . . . . . . . . . . . . . . . . . Robot Hacks Applied 3 | . 1 . . 1 . . . . . . . . . 1 . . . . . . . . no_distress 1 | . 1 . . . . . . . . . . . . . . . . . . . . . find_chute 1 | . . . . . . . . . . . . . . 1 . . . . . . . . find_recycling 1 | . . . . 1 . . . . . . . . . . . . . . . . . . Relay Couplers Released 10 | . . . . . . . . . 3 . . . . . . . . 3 . . . 4 Machine Destruction 3 | . . . . . . . . . 3 . . . . . . . . . . . . . Programmers 7 | . . . . . . . . . . . . . . . . . . 3 . . . 4 Fabnet Peak Effective % . | . . . . . . . . . . . . . . . . . . . . . . . Robots Rewired 9 | . . . . . . . . . . . 1 . . . 1 . . . 7 . . . Allies Hacked 1 | . . . . . . . . . . . . . . . . . . . 1 . . . Hacks Repelled . | . . . . . . . . . . . . . . . . . . . . . . . Allies | -11 -10 -9 -9 -9 -7 -7 -7 -7 -6 -6 -6 -6 -5 -5 -5 -5 -5 -4 -4 -4 -4 -4 -------- Run | Yrd Mat Mat Sto Rec Fac Was Fac DSF Fac Low Low Dat Pro Fac Was Fac DSF Fac Ext Cet Arc Hub Total Allies 27 | . 1 1 . . 3 . . . 3 . 1 . 1 . 1 . . 3 12 . . 1 Largest Group 10 | . 1 2 1 . 3 . . . 3 . 1 1 1 1 1 . . 2 10 1 1 1 Highest-Rated Group 528 | . 10 67 10 . 90 . . . 123 . 29 29 96 96 134 . . 79 528 51 46 119 Highest-Rated Ally 159 | . 10 57 10 . 30 . . . 41 . 29 29 96 96 134 . . 79 159 51 46 119 Initial Warlord ECA Mod 17 | . . . . . . . . . 9 9 9 9 8 8 8 8 8 17 17 17 17 17 Total Orders 2 | . . 2 . . . . . . . . . . . . . . . . . . . . STAY 1 | . . 1 . . . . . . . . . . . . . . . . . . . . FOLLOW 1 | . . 1 . . . . . . . . . . . . . . . . . . . . Ally Attacks 247 | . . 4 . . 10 . . . 38 . . . 9 11 1 . . 30 108 22 7 7 Total Damage 8247 | . . 166 . . 325 . . . 1844 . . . 263 249 38 . . 1429 3014 553 94 272 Kills 60 | . . 2 . . 5 . . . 13 . . . 2 5 . . . 6 19 6 1 1 Allies Corrupted 1 | . . . . . . . . . . . . . . . . . . . . . . 1 Allies Melted 1 | . . . . . . . . . . . . . . . . . . . 1 . . . X0-1V1 Amusement Gains 287 | . 5 9 . 98 . . . 5 . 10 . . . 10 . . . 5 60 . . 85 Average Entertainment 32 | . 1 8 5 66 56 56 56 57 61 42 27 . 8 4 13 13 13 14 24 33 19 43 Good Acts 134 | . 7 10 4 14 8 4 . 8 6 11 6 . 4 6 13 1 . 14 10 . 4 4 Bad Acts 67 | . 5 . 4 7 7 1 . 1 1 3 1 . 3 2 9 . 1 10 6 . . 6 Intel | -11 -10 -9 -9 -9 -7 -7 -7 -7 -6 -6 -6 -6 -5 -5 -5 -5 -5 -4 -4 -4 -4 -4 ------- Run | Yrd Mat Mat Sto Rec Fac Was Fac DSF Fac Low Low Dat Pro Fac Was Fac DSF Fac Ext Cet Arc Hub Active Infowar (turns) 3802 | . 1152 . . . . . . 46 348 501 . . 786 412 555 . 2 . . . . . Optics 46 | . . . . . . . . 46 . . . . . . . . . . . . . . Sensors 2409 | . . . . . . . . . 348 501 . . 593 412 555 . . . . . . . IFF 2 | . . . . . . . . . . . . . . . . . 2 . . . . . Seismic 160 | . 160 . . . . . . . . . . . . . . . . . . . . . Machine Analysis 992 | . 992 . . . . . . . . . . . . . . . . . . . . . Jamming 241 | . . . . . . . . . 48 . . . 193 . . . . . . . . . Robot Analysis Total 3 | . . 3 . . . . . . . . . . . . . . . . . . . . Derelict Logs Recovered 2 | . . . . . . . . . . . 2 . . . . . . . . . . . Drone Launches . | . . . . . . . . . . . . . . . . . . . . . . . Drone Recoveries . | . . . . . . . . . . . . . . . . . . . . . . . Exploration | -11 -10 -9 -9 -9 -7 -7 -7 -7 -6 -6 -6 -6 -5 -5 -5 -5 -5 -4 -4 -4 -4 -4 ------------- Run | Yrd Mat Mat Sto Rec Fac Was Fac DSF Fac Low Low Dat Pro Fac Was Fac DSF Fac Ext Cet Arc Hub Turns Passed 15938 | 128 1446 896 662 1488 860 232 11 455 1197 948 1125 141 823 628 907 82 351 977 1213 435 374 559 Spaces Moved 8838 | 58 467 415 255 836 834 246 9 317 608 678 605 84 455 409 369 53 185 657 804 156 132 206 Core 21 | 3 . . . . . . . . . . . . . . . . . . . . . 18 Treads 2949 | 55 467 415 255 456 71 . . . 97 . 73 84 423 . 9 . . 14 242 54 132 102 Legs 1960 | . . . . 192 344 246 9 203 184 189 . . . . 91 53 185 169 . 9 . 86 Wheels 24 | . . . . . . . . . . 24 . . . . . . . . . . . . Hover 1605 | . . . . . . . . 114 327 435 532 . . . . . . 74 52 71 . . Flight 2279 | . . . . 188 419 . . . . 30 . . 32 409 269 . . 400 510 22 . . Fastest Speed 46 | 50 160 160 160 58 58 63 63 63 63 65 65 168 85 85 85 129 129 46 56 175 175 50 Average Speed 120 | 154 160 160 160 117 66 63 63 63 157 106 161 168 166 85 115 129 129 86 100 210 175 152 Slowest Speed 261 | 160 160 160 160 160 129 63 63 63 233 229 218 168 205 85 192 129 129 165 222 247 175 261 Overloaded Moves . | . . . . . . . . . . . . . . . . . . . . . . . Propulsion Burnouts . | . . . . . . . . . . . . . . . . . . . . . . . Robots Hopped 6 | . . . . . . . . . . . . . . 1 . . . 2 3 . . . Potential Cave-ins 6 | . . . . 2 . . . 3 . . . . . . . . . . 1 . . . Cave-ins Triggered . | . . . . . . . . . . . . . . . . . . . . . . . Exploration Rate (%) 54 | 5 79 41 41 77 27 80 . 94 20 65 81 68 60 14 100 2 92 14 79 56 76 26 Regions Visited 22 Branch Regions 10 Pre-discovered Areas 3 | . 1 . . . . . . . . . 1 1 . . . . . . . . . . Known Exits Taken 10 | . 1 . . 1 . . 1 . 1 . 1 1 1 . . 1 . 1 . . 1 . Unknown Exits Taken 6 | 1 . 1 1 . . . . . . 1 . . . . . . . . 1 1 . . Scrap Searched 8 | . . . . . . . . . . 1 7 . . . . . . . . . . . Spaces Dug 66 | . 2 1 . . 3 8 1 11 3 5 . . . 1 19 . 5 4 . . . 3 Terrain Destroyed 640 | . 4 25 . . 7 9 1 14 61 24 20 . 25 38 112 31 5 136 94 2 10 22 Melee 19 | . . . . . 3 8 1 . . . . . . . . . 1 4 . . . 2 Projectile 270 | . 4 2 . . 4 1 . 14 10 21 16 . 13 10 29 . 4 16 94 2 10 20 AOE 351 | . . 23 . . . . . . 51 3 4 . 12 28 83 31 . 116 . . . . Terrain Rammed . | . . . . . . . . . . . . . . . . . . . . . . . Walls Destroyed . | . . . . . . . . . . . . . . . . . . . . . . . Machines Disabled . | . . . . . . . . . . . . . . . . . . . . . . . Actions | -11 -10 -9 -9 -9 -7 -7 -7 -7 -6 -6 -6 -6 -5 -5 -5 -5 -5 -4 -4 -4 -4 -4 --------- Run | Yrd Mat Mat Sto Rec Fac Was Fac DSF Fac Low Low Dat Pro Fac Was Fac DSF Fac Ext Cet Arc Hub Total 12463 | 78 965 537 460 1269 1064 299 10 511 746 828 691 85 486 636 767 62 257 870 1082 215 219 326 Wait 1929 | . 292 53 147 342 155 37 . 136 47 47 29 1 10 101 337 6 6 77 63 11 18 14 Move 8807 | 57 466 414 254 835 834 245 8 316 607 677 604 83 454 407 368 52 184 652 798 155 131 206 Hop 5 | . . . . . . . . . . . . . . 1 . . . 2 2 . . . Pick Up 181 | 7 11 8 10 10 12 1 . 6 12 20 21 . 1 9 6 . 8 5 16 8 8 2 Fast Attach 77 | 6 3 4 1 5 4 1 . 4 4 4 2 . 1 . 3 1 2 9 11 3 3 6 Attach 54 | . 1 3 4 3 3 . . 2 2 8 1 . 1 3 1 . 3 6 1 2 3 7 Detach 18 | . . . . 1 3 . . 1 . 5 . . 1 . 1 . 1 1 . 1 1 2 Swap 109 | . 12 4 4 2 2 . . . 14 5 . . 3 12 7 2 6 11 14 1 1 9 Drop 190 | . 9 6 8 31 3 1 . 12 7 18 5 1 2 4 7 . 6 19 24 10 7 10 Fire 699 | 8 83 45 22 39 21 3 . 28 42 42 26 . 13 21 35 1 22 64 75 24 36 49 Melee 77 | . 1 . . 1 22 11 2 . 1 . . . . 1 2 . 1 23 . . . 12 Ram 2 | . . . . . . . . . . . . . . . . . . . 1 . . 1 Kick . | . . . . . . . . . . . . . . . . . . . . . . . Crush . | . . . . . . . . . . . . . . . . . . . . . . . Escape Stasis 36 | . . . . . . . . 6 5 . . . . 6 . . 17 . 2 . . . Rewire 73 | . . . . . . . . . . . 3 . . . . . . . 70 . . . Trap 191 | . 87 . 10 . 5 . . . 5 2 . . . 71 . . 1 1 5 . . 4 Miscellaneous 15 | . . . . . . . . . . . . . . . . . . . . . 11 4 Route ------- -11/Scrapyard -10/Materials (discovered 5 exits: *Mat x3 / [*Min] / [*Sub]) -9/Materials (discovered 6 exits: *Mat x3 / *Min x2 / *Sto) -9/Storage -9/Recycling -7/Factory (discovered 3 exits: *Fac / *Low x2) -7/Waste -7/Factory -7/DSF -6/Factory (discovered 3 exits: *Fac / *Low x2) -6/Lower Caves -6/Lower Caves (discovered 2 exits: *Fac / *Dat) -6/Data Miner -5/Proximity Caves -5/Factory -5/Waste -5/Factory -5/DSF -4/Factory (discovered 6 exits: Res / Upp x2 / *Ext x2 / Arm) -4/Extension (discovered 2 exits: *Res / [*Cet]) -4/Cetus (discovered 2 exits: *Res / [*Arc]) -4/Archives (discovered 2 exits: *Hub x2) -4/Hub_04(d) History --------- Turn | Location | Event 17 | -11/Scrapyard | Discovered new exit (range 15) 129 | -11/Scrapyard | Entered Materials 332 | -10/Materials | Build established: Mutant 516 | -10/Materials | Repaired Lgt. Treads 710 | -10/Materials | Discovered new exit (range 7) 950 | -10/Materials | Discovered new exit (range 16) 1176 | -10/Materials | Discovered new exit (range 15) 1269 | -10/Materials | Discovered new exit (range 8) 1306 | -10/Materials | Prayed at D.C.S.S. Altar Unit 1452 | -10/Materials | X0-1V1 vaporized surrounding terrain (radius 15) 1455 | -10/Materials | Matter capacity permanently improved by X0-1V1 (+200; -100 max core) 1462 | -10/Materials | Learned location of Recycling (-9) 1474 | -10/Materials | X0-1V1 activates XOMVISION 1482 | -10/Materials | X0-1V1 foreshadows a heat wave 1497 | -10/Materials | Learned 2 Mines zone layouts 1498 | -10/Materials | Identified exit to Materials 1498 | -10/Materials | X0-1V1 revealed exit location to -9/Materials 1520 | -10/Materials | Learned Storage security intel 1521 | -10/Materials | Forcibly received Sfc. Transmogifier from X0-1V1 1531 | -10/Materials | Learned 2 Mines zone layouts 1533 | -10/Materials | Loaded intel: 17 trap records 1534 | -10/Materials | Learned 4 Recycling zone layouts 1536 | -10/Materials | Learned Storage stockpile data 1572 | -10/Materials | Learned Storage security intel 1575 | -10/Materials | Entered another Materials area 1575 | -9/Materials | Accompanied by 1 ally 1575 | -9/Materials | Evolved 2 slots: Propulsion x1, Weapon x1 1576 | -9/Materials | Identified exit to Materials 1594 | -9/Materials | X0-1V1 revealed exit location to -8/Materials 1719 | -9/Materials | X0-1V1 sent allied Chaos Knight (x1) 1741 | -9/Materials | Weapon slot count permanently improved by X0-1V1 (+1) 1781 | -9/Materials | Discovered new exit (range 13) 2022 | -9/Materials | Build established: Scavenger-Gunner 2052 | -9/Materials | Identified exit to Mines 2052 | -9/Materials | X0-1V1 revealed exit location to -9/Mines 2061 | -9/Materials | Repaired Lgt. Treads+ 2394 | -9/Materials | Core integrity restored by X0-1V1 (+87) 2457 | -9/Materials | Discovered new exit (range 5) 2471 | -9/Materials | Entered Storage 2471 | -9/Storage | Accompanied by 1 ally 2552 | -9/Storage | Repaired Lgt. Treads+ 2668 | -9/Storage | Melee accuracy permanently improved by X0-1V1 (+9%; -90 max core) 2725 | -9/Storage | X0-1V1 activates XOMVISION 2883 | -9/Storage | Repaired Trap Extractor 2916 | -9/Storage | Repaired Hvy. Assault Rifle+ 2956 | -9/Storage | Used back door to open Recycling access 2956 | -9/Storage | Discovered new exit (range 5) 3090 | -9/Storage | Build established: Scientist-Gunner 3133 | -9/Storage | Entered Recycling 3134 | -9/Recycling | Identified exit to Scraptown 3279 | -9/Recycling | X0-1V1 sent hostile G-34 Mercenary (x3) 3612 | -9/Recycling | Identified exit to Factory 3612 | -9/Recycling | X0-1V1 revealed exit location to -7/Factory 3709 | -9/Recycling | Scanned before Scraplab entrance 3752 | -9/Recycling | Entered Scraplab 3755 | -9/Recycling | Angered Scraplab inhabitants 3757 | -9/Recycling | Found Prototype Device 3757 | -9/Recycling | Identified Scrap Engine 4090 | -9/Recycling | X0-1V1 activates XOMVISION 4219 | -9/Recycling | X0-1V1 sent hostile S-10 Pest (x3) 4295 | -9/Recycling | Build established: Construct 4295 | -9/Recycling | X0-1V1 caused items to flee you 4434 | -9/Recycling | Items stopped fleeing you 4509 | -9/Recycling | X0-1V1 vaporized surrounding terrain (radius 16) 4591 | -9/Recycling | X0-1V1 put everyone to sleep 4621 | -9/Recycling | Entered Factory 4621 | -7/Factory | Evolved 4 slots: Power x1, Propulsion x1, Utility x2 4692 | -7/Factory | X0-1V1 added 0b10 threat records associated with you (minor) 4836 | -7/Factory | X0-1V1 announced a LAN party 4893 | -7/Factory | Discovered new exit (range 7) 4907 | -7/Factory | X0-1V1 sent you to a vault 4940 | -7/Factory | Discovered new exit (range 8) 4987 | -7/Factory | Identified exit to Lower Caves 5010 | -7/Factory | P-60 Hacker assimilated allied Fighter 4a 5326 | -7/Factory | Garrison activated, responded to threat 5421 | -7/Factory | First assault squad dispatched 5481 | -7/Factory | Manually triggered Chute Trap 5481 | -7/Factory | Sucked down chute 5481 | -7/Factory | Entered Waste 5539 | -7/Waste | Spotted C-40 Crusher 5545 | -7/Waste | Weapon slot count temporarily expanded by X0-1V1 (+3) 5549 | -7/Waste | Spotted C-40 Crusher 5551 | -7/Waste | Spotted C-40 Crusher 5603 | -7/Waste | Spotted C-40 Crusher 5635 | -7/Waste | Discovered new exit (range 11) 5678 | -7/Waste | X0-1V1 activates XOMVISION 5679 | -7/Waste | Spotted C-40 Crusher 5691 | -7/Waste | Spotted C-40 Crusher 5713 | -7/Waste | Entered Factory 5715 | -7/Factory | Identified exit to DSF 5724 | -7/Factory | Entered DSF 5750 | -7/DSF | Weapon slot count reverted to normal (-3) 5766 | -7/DSF | Additional patrols routed to DSF 5951 | -7/DSF | Identified exit to Factory 5951 | -7/DSF | X0-1V1 revealed exit location to -6/Factory 6063 | -7/DSF | Core integrity fell below 50% 6104 | -7/DSF | Sterilization system engaged 6124 | -7/DSF | Ambient heat levels rising (+10) 6139 | -7/DSF | Ambient heat levels rising (+10) 6154 | -7/DSF | Ambient heat levels rising (+10) 6169 | -7/DSF | Ambient heat levels rising (+10) 6179 | -7/DSF | Entered Factory 6179 | -6/Factory | Evolved 2 slots: Utility x2 6204 | -6/Factory | X0-1V1 released a cloud of subatomizers 6294 | -6/Factory | Identified exit to Lower Caves 6489 | -6/Factory | X0-1V1 sent you to a vault 6515 | -6/Factory | Discovered new exit (range 7) 6520 | -6/Factory | Garrison activated, responded to threat 6542 | -6/Factory | X0-1V1 sent someone to clean up after you 6552 | -6/Factory | Identified exit to Factory 6611 | -6/Factory | Spotted B-75 Beast 6616 | -6/Factory | Allies destroyed B-75 Beast 6724 | -6/Factory | P-60 Hacker assimilated allied Slayer 5c 6754 | -6/Factory | Allied Derelicts emerged from ambush trap array 7376 | -6/Factory | Entered Lower Caves 7441 | -6/Lower Caves | Attracted the attention of an 0b10 base 7540 | -6/Lower Caves | Lost 3 parts (1p1u1w) 7569 | -6/Lower Caves | Encountered a Warlord checkpoint 7601 | -6/Lower Caves | X0-1V1 activates XOMVISION 7669 | -6/Lower Caves | X0-1V1 upgraded hostiles (x1) 7695 | -6/Lower Caves | Weapon slot count temporarily expanded by X0-1V1 (+1) 7927 | -6/Lower Caves | Weapon slot count reverted to normal (-1) 8002 | -6/Lower Caves | X0-1V1 activates XOMVISION 8111 | -6/Lower Caves | Discovered new exit (range 13) 8159 | -6/Lower Caves | Adv. Signal Interpreter reconfigured into Item Mimic 8324 | -6/Lower Caves | Entered another Lower Caves area 8334 | -6/Lower Caves | Learned 4 Factory zone layouts 8392 | -6/Lower Caves | X0-1V1 activates XOMVISION 8428 | -6/Lower Caves | Discovered exit to Factory (range 9) 8567 | -6/Lower Caves | Spotted B-75 Beast 8590 | -6/Lower Caves | Destroyed B-75 Beast 9164 | -6/Lower Caves | Attracted the attention of an 0b10 outpost 9187 | -6/Lower Caves | Core integrity fell below 50% 9388 | -6/Lower Caves | Encountered a Warlord checkpoint 9426 | -6/Lower Caves | Discovered new exit (range 13) 9446 | -6/Lower Caves | Identified exit to Data Miner 9449 | -6/Lower Caves | Entered Data Miner 9449 | -6/Data Miner | Accompanied by 1 ally 9451 | -6/Data Miner | Discovered new exit (range 6) 9483 | -6/Data Miner | Met Data Miner 9513 | -6/Data Miner | Learned location of Section 7 (-2) 9513 | -6/Data Miner | Acquired the access code to Warlord's prototype stash 9548 | -6/Data Miner | Received God Mode back door access code from Data Miner 9585 | -6/Data Miner | Identified exit to Proximity Caves 9590 | -6/Data Miner | Entered Proximity Caves 9590 | -5/Proximity Caves | Accompanied by 1 ally 9915 | -5/Proximity Caves | Sensors blinded by X0-1V1 10090 | -5/Proximity Caves | Escorted by Enhanced Grunt 10178 | -5/Proximity Caves | Attracted the attention of an 0b10 checkpoint 10404 | -5/Proximity Caves | Discovered exit to Factory (range 6) 10413 | -5/Proximity Caves | Entered Factory 10413 | -5/Factory | Accompanied by 1 ally 10413 | -5/Factory | Evolved 2 slots: Utility x2 10544 | -5/Factory | X0-1V1 put everyone to sleep 10796 | -5/Factory | Watched by a mysterious "MATRIX" hacker 10821 | -5/Factory | Fabricated Hcp. Storage Unit (x1) 10886 | -5/Factory | Spotted B-75 Beast 10902 | -5/Factory | Fabricated Field Propulsion Array? 11013 | -5/Factory | First assault squad dispatched 11015 | -5/Factory | Destroyed 9 combat bots 11017 | -5/Factory | Lost 4 parts (2p1u1w) 11025 | -5/Factory | X0-1V1 woke everyone up 11041 | -5/Factory | Sucked down chute 11041 | -5/Factory | Entered Waste 11096 | -5/Waste | X0-1V1 activates XOMVISION 11107 | -5/Waste | Spotted C-40 Crusher 11111 | -5/Waste | Spotted C-40 Crusher 11131 | -5/Waste | Spotted C-40 Crusher 11159 | -5/Waste | Destroyed C-40 Crusher 11175 | -5/Waste | Destroyed C-40 Crusher 11182 | -5/Waste | Destroyed C-40 Crusher 11205 | -5/Waste | Spotted C-40 Crusher 11236 | -5/Waste | Rewired C-40 Crusher 11268 | -5/Waste | Spotted C-40 Crusher 11297 | -5/Waste | Destroyed C-40 Crusher 11335 | -5/Waste | Spotted C-40 Crusher 11356 | -5/Waste | X0-1V1 caused items to flee you 11366 | -5/Waste | Destroyed C-40 Crusher 11394 | -5/Waste | X0-1V1 activates XOMVISION 11500 | -5/Waste | Items stopped fleeing you 11596 | -5/Waste | X0-1V1 sent hostile P-60 Hacker (x2) 11811 | -5/Waste | Discovered new exit (range 12) 11947 | -5/Waste | Identified exit to Factory 11948 | -5/Waste | Entered Factory 12030 | -5/Factory | Identified exit to DSF 12030 | -5/Factory | Entered DSF 12074 | -5/DSF | Additional patrols routed to DSF 12137 | -5/DSF | Lost 3 parts (2u1w) 12175 | -5/DSF | Discovered new exit (range 14) 12271 | -5/DSF | Sterilization system engaged 12291 | -5/DSF | Ambient heat levels rising (+10) 12306 | -5/DSF | Ambient heat levels rising (+10) 12321 | -5/DSF | Ambient heat levels rising (+10) 12336 | -5/DSF | Ambient heat levels rising (+10) 12351 | -5/DSF | Ambient heat levels rising (+10) 12366 | -5/DSF | Ambient heat levels rising (+10) 12380 | -5/DSF | Identified exit to Factory 12381 | -5/DSF | Ambient heat levels rising (+10) 12381 | -5/DSF | Entered Factory 12381 | -4/Factory | Evolved 2 slots: Power x2 12473 | -4/Factory | X0-1V1 sent hostile G-50 Soldier (x4) 12634 | -4/Factory | Fabricated Y-54 Guardian? 12708 | -4/Factory | Fabricated Trap Extractor (x2) 12999 | -4/Factory | Identified exit to Upper Caves 12999 | -4/Factory | Identified exit to Extension 12999 | -4/Factory | Identified exit to Armory 13000 | -4/Factory | Spotted B-86 Titan 13021 | -4/Factory | X0-1V1 downgraded hostiles (x2) 13028 | -4/Factory | Identified exit to Research 13028 | -4/Factory | X0-1V1 revealed exit location to -3/Research 13068 | -4/Factory | Core integrity restored by X0-1V1 (+182) 13078 | -4/Factory | Weapon slot count temporarily expanded by X0-1V1 (+2) 13080 | -4/Factory | Lost 3 parts (1u2w) 13176 | -4/Factory | Fabricated Hvy. Assault Rifle? 13186 | -4/Factory | X0-1V1 sent allied Knight (x1) 13195 | -4/Factory | Garrison activated, responded to threat 13299 | -4/Factory | System corruption reached 10% 13358 | -4/Factory | Entered Extension 13439 | -4/Extension | Weapon slot count reverted to normal (-2) 13584 | -4/Extension | Rescued a captive Derelict 13585 | -4/Extension | Rescued a captive Derelict 13750 | -4/Extension | Rescued a captive Derelict 13756 | -4/Extension | Rescued a captive Derelict 13822 | -4/Extension | Rescued A7 13857 | -4/Extension | Spotted B-86 Titan 13858 | -4/Extension | First assault squad dispatched 13935 | -4/Extension | X0-1V1 caused items to flee you 13978 | -4/Extension | Warlord forces began an assault 14013 | -4/Extension | Items stopped fleeing you 14035 | -4/Extension | Spotted B-86 Titan 14108 | -4/Extension | X0-1V1 announced a LAN party 14387 | -4/Extension | Extracted ID and sensor layout for unrecognized location from A7's data core 14433 | -4/Extension | Disrupted transfer network 14466 | -4/Extension | Lost 8 allies 14553 | -4/Extension | Discovered exit to Research (range 10) 14556 | -4/Extension | Discovered new exit (range 6) 14571 | -4/Extension | Entered Cetus 14571 | -4/Cetus | Accompanied by 1 ally 14597 | -4/Cetus | Spotted Cetus Guard 14597 | -4/Cetus | Spotted Cetus Guard 14600 | -4/Cetus | Spotted Cetus Guard 14600 | -4/Cetus | Spotted Cetus Guard 14611 | -4/Cetus | Allies destroyed Cetus Guard 14617 | -4/Cetus | Allies destroyed Cetus Guard 14626 | -4/Cetus | Core integrity fell below 50% 14634 | -4/Cetus | Allies destroyed Cetus Guard 14756 | -4/Cetus | Build established: Generator-Construct 14830 | -4/Cetus | Discovered new exit (range 15) 14867 | -4/Cetus | Spotted Cetus Guard 14869 | -4/Cetus | Spotted Cetus Guard 14870 | -4/Cetus | Spotted Cetus Guard 14878 | -4/Cetus | Destroyed Cetus Guard 14880 | -4/Cetus | Spotted Cetus Guard 14884 | -4/Cetus | Allies destroyed Cetus Guard 14884 | -4/Cetus | Allies destroyed Cetus Guard 14894 | -4/Cetus | Destroyed Cetus Guard 14916 | -4/Cetus | Discovered exit to Research (range 15) 14925 | -4/Cetus | Met Revision 17 15006 | -4/Cetus | Entered Archives 15006 | -4/Archives | Accompanied by 1 ally 15092 | -4/Archives | X0-1V1 activates XOMVISION 15115 | -4/Archives | Identified exit to Hub_04(d) 15115 | -4/Archives | X0-1V1 revealed exit location to -4/Hub_04(d) 15132 | -4/Archives | Discovered exit to Hub_04(d) (range 16) 15380 | -4/Archives | Entered Hub_04(d) 15380 | -4/Hub_04(d) | Accompanied by 1 ally 15413 | -4/Hub_04(d) | Network Hub disabled 15463 | -4/Hub_04(d) | Spotted B-86 Titan 15733 | -4/Hub_04(d) | Found Hvy. Scimitar of Distortion 15776 | -4/Hub_04(d) | Lost 17 parts (5p1n4u7w) 15809 | -4/Hub_04(d) | X0-1V1 sent allied Executioner (x1) 15876 | -4/Hub_04(d) | Garrison activated, responded to threat 15889 | -4/Hub_04(d) | Spotted Lightning 15899 | -4/Hub_04(d) | Core integrity fell below 20% 15914 | -4/Hub_04(d) | Spotted Lightning 15937 | -4/Hub_04(d) | Disrupted transfer network 15939 | -4/Hub_04(d) | Destroyed by Y-64 Sentinel with Wave Gun Last Messages --------------- 15930_ Slug penetrates R-10 Processor. 15933_ Acquired Prototype Slashing Weapon. 15933_ Identified Plasma Sword. 15933_ Faulty integration triggers meltdown. 15933_ Adv. Heat Sink damaged (-5). 15933_ Scrap Engine damaged (-10). 15933_ Myomer Exoskeleton damaged (-14). 15934_ K-01 Serf exits Transfer Station. 15934_ R-10 Processor exits Transfer Station. 15935_ Transfer Station disabled. 15935_ S-27 Virus destroyed. 15935_ Penetrated by EMDS Slug. 15935_ Myomer Exoskeleton destroyed. 15935_ Myomer Exoskeleton core remains intact and functional. 15936_ System corrupted: Energy discharge (-5). 15937_ ALERT: Transfer network disrupted, dispatching garrison force. 15938_ Penetrated by Slug. 15939_ X0-1V1 laughs nastily! Map ----- +----------------------------------------------------+ | ??????????????????????????????????????? | | ??????????????????????????????????????? | | ??????????????????????????????????????? | | ??????????????????????????????????????? | | ??????????????????????????????????????? | | ??????????????????????????????????????? | | ??????????????????????????????????????? | | ??????????????????????????????????????? | | ??????????????????????????????????????? | | ??????????????????????????????????????? | | ??????????????????????????????????????? | | ??????????????????????????????????????? | | ?????????????????###+#####????????????? | | ????????????????? #????????????? | | ?????????????????? #????????????? | | ????????????????#? /#????????????? | | ????????????????# ? #????????????? | | ????????????????? = #????????????? | | ?????????????????? ?????????????? | | ??????????????????? ?????????????? | | ???????????????????? ??????????????? | | ????????????????????? ??????????????? | | ?????????????????????#"#?????######???? | | ??????????########?### ###???# ####? | | ??????????# # /##### ""#? | | ??????????#^ ]=! # p!@ ! #? | | ??????????# ==! + YH[hk[ ! "#? | | ?????????# =!! # YhoxsR "#? | | ?????????## # ;####p """#? | | ??????????# "" ?## ;##??# ####? | | ??????????# "G ??# ###########???? | | ??????????? "" ???# w + #?? | | ??????????# ???#k # #?? | | ??????????######????#% #??""" """" ??? | | ??????????###########!* #?"""" ???????? | | ??????????# ##"#%%= # """" ""?????? | | ??????????# !!![%# """ """????? | | ??????????# " % ! *% #?? | | ??????????# % % %"#######??????? | | ??????????# "#########????????????? | | ?########### ##????? ????????????? | | ?# # #"# " ????????????? | | ?# " " [#% " #???????????? | | ?# " " = [+% # ! #???????????? | | ?# " " = !#= #???###+##???????????? | | ?# == "## ????????????????? | | ?# #?# #### ?????????????? | | ## ! #?# #???? ##????????????? | | + #?? #????? #?????????????? | | ##+#########?? #?????? #?????????????? | +----------------------------------------------------+ Best States ------------- Heat Dissipation 157 Coolant Potential 80 Energy Generation 104 Energy Capacity 2180 Matter Stores 995 Matter Capacity 1200 Sight Range 22 Robot Scan Range 16 Terrain Scan Density 10 Jamming Range 12 Base Temperature (-) 200 Corruption Block 8 Armor Coverage 225 Resistance: TH 19 Resistance: EM 18 Weapon Cycling 20 Phase Shifting 15 Evasion (%) 62 Targeting Accuracy 8 Recoil Reduction 4 Salvage Targeting 4 Offensive Hacking 24 Defensive Hacking 22 Authchip Count 2 Trap Extractor Capacity 4 Item Schematics ----------------- Propulsion Shielding | -9/Materials | Scanalyzed Trap Extractor | -9/Materials | Hacked Med. Armor Plating | -9/Materials | Scanalyzed Hvy. Assault Rifle | -9/Materials | Scanalyzed Imp. Utility Shielding | -9/Recycling | Hacked Hcp. Storage Unit | -9/Recycling | Hacked Carbon-fiber Leg | -6/Factory | Scanalyzed Lgt. Regenerative Plating | -6/Data Miner | Free Combat Drone Bay | -6/Data Miner | Free Enh. Armored Leg | -6/Data Miner | Free Prc. Matter Filter | -6/Data Miner | Free Hvy. Proton Cannon | -6/Data Miner | Free Imp. Gyrokinetic Inverter | -6/Data Miner | Free Adv. Thermal Shield | -6/Data Miner | Free Force Lance | -6/Data Miner | Free Nuclear Pulse Array | -6/Data Miner | Free Com. HERF Cannon | -6/Data Miner | Free Gamma Bomb Array | -4/Extension | Hacked Robot Schematics ------------------ M-13 Machinist | -10/Materials | Hacked Y-54 Guardian | -6/Data Miner | Free M-22 Extractor | -6/Data Miner | Free B-60 Warrior | -6/Data Miner | Free A-15 Conveyor | -6/Data Miner | Free Fabricated ------------ Hcp. Storage Unit | x1 | -5/Factory Field Propulsion Array | x1 | -5/Factory | Preloaded Y-54 Guardian | x2 | -4/Factory | Authchip Trap Extractor | x2 | -4/Factory | Authchip Hvy. Assault Rifle | x2 | -4/Factory Repaired ---------- Lgt. Treads | 55% | -10/Materials Lgt. Treads | 11% | -9/Materials Lgt. Treads | 37% | -9/Storage Trap Extractor | 12% | -9/Storage Hvy. Assault Rifle | 37% | -9/Storage Studied --------- Hvy. Assault Rifle | -9/Materials | Hacked Lgt. Treads | -9/Materials | Hacked Wheel | -9/Materials | Hacked Lgt. Ion Engine | -9/Materials | Hacked Imp. Light Cannon | -9/Materials | Hacked Flail | -9/Materials | Hacked Carbon-fiber Leg | -6/Factory | Hacked Lrn. Missile Launcher | -6/Factory | Hacked Lgt. Fission Core | -6/Factory | Hacked Hvy. Plasma Cannon | -6/Factory | Hacked Imp. Datajack | -6/Factory | Hacked Alien Tech Used ----------------- None Achievements -------------- My Business Is Booming Challenges ------------ None Game ------ Seed ConceptOpticalReprisal Manual? 0 Play Time 03:19:10 Cumulative 800.9 hours Start 2026.09.07 @ 12:47:01 End 2026.09.07 @ 16:05:49 Sessions 1 Manual Loads 0 Difficulty Rogue Special Mode None Game No. 204 Rogue 66 Adventurer 138 Explorer 0 Win Type - Total 12 Types 8/0/1/2/0/0/0/0/1/0 Lore% 80 Gallery% 75 Achievement% 58 Wizard Run 0 Options --------- Layout 2 ASCII 0 Keyboard 0 Movement Mouse Keybinds 0 Fullscreen 1 Font 24/Smallcaps Map View 50x49 Zoom Use 3% Tactical HUD 1 Map Filters NONE Filters NONE Steam 1 RUN: cbb592a6-cdeb-4f6f-ae0a-0b504e880bff